[Event "Early-Titled-Tuesday-Blitz-January-23-2024"]
[Site "Chess.com"]
[Date "2024.01.23"]
[Round "11"]
[White "Sargsyan_Shant"]
[Black "Zurability"]
[Result "1-0"]
[WhiteElo "2920"]
[BlackElo "2768"]
[TimeControl "180+1"]
[EndTime "10:08:36 PST"]
[Termination "Sargsyan_Shant won by resignation"]

1. c4 {[%clk 0:02:59.9]} 1... e6 {[%clk 0:02:59.6]} 2. Nc3 {[%clk 0:02:58.5]}
2... d5 {[%clk 0:03:00.1]} 3. d4 {[%clk 0:02:59.2]} 3... Nf6 {[%clk 0:02:59.8]}
4. cxd5 {[%clk 0:02:59.4]} 4... exd5 {[%clk 0:03:00]} 5. Bf4 {[%clk 0:02:59.7]}
5... c6 {[%clk 0:02:58.7]} 6. e3 {[%clk 0:02:58.5]} 6... Bd6 {[%clk 0:02:59]} 7.
Bxd6 {[%clk 0:02:58.3]} 7... Qxd6 {[%clk 0:02:59]} 8. Bd3 {[%clk 0:02:59.2]}
8... O-O {[%clk 0:02:59.2]} 9. Qf3 {[%clk 0:02:58.3]} 9... Re8 {[%clk
0:02:55.9]} 10. h3 {[%clk 0:02:49.7]} 10... c5 {[%clk 0:02:46]} 11. Nge2 {[%clk
0:02:46.9]} 11... Nc6 {[%clk 0:02:38.3]} 12. dxc5 {[%clk 0:02:42.3]} 12... Qxc5
{[%clk 0:02:39.2]} 13. O-O {[%clk 0:02:42.4]} 13... Ne5 {[%clk 0:02:35.9]} 14.
Bxh7+ {[%clk 0:02:30]} 14... Kxh7 {[%clk 0:02:26.5]} 15. Qg3 {[%clk 0:02:30.2]}
15... Ng6 {[%clk 0:02:20]} 16. Rfd1 {[%clk 0:02:29.4]} 16... Kg8 {[%clk
0:02:18.7]} 17. Rac1 {[%clk 0:02:29.5]} 17... Qb6 {[%clk 0:02:17.6]} 18. b3
{[%clk 0:02:29.6]} 18... Be6 {[%clk 0:02:12]} 19. Nd4 {[%clk 0:02:30.1]} 19...
Rac8 {[%clk 0:02:10.8]} 20. f3 {[%clk 0:02:29.1]} 20... Qb4 {[%clk 0:01:59]} 21.
Qe1 {[%clk 0:02:28.9]} 21... Qe7 {[%clk 0:01:54.2]} 22. Qd2 {[%clk 0:02:24.4]}
22... a6 {[%clk 0:01:48.4]} 23. Kf2 {[%clk 0:02:23.6]} 23... Nh5 {[%clk
0:01:45.2]} 24. Kg1 {[%clk 0:02:16.8]} 24... Qh4 {[%clk 0:01:40]} 25. Qf2 {[%clk
0:02:09.9]} 25... Qxf2+ {[%clk 0:01:35.4]} 26. Kxf2 {[%clk 0:02:10.8]} 26... Nf6
{[%clk 0:01:33.7]} 27. g4 {[%clk 0:02:11]} 27... Rc7 {[%clk 0:01:24.8]} 28. Rd2
{[%clk 0:01:39.1]} 28... Rec8 {[%clk 0:01:22.1]} 29. Rdc2 {[%clk 0:01:39.7]}
29... b5 {[%clk 0:01:15.9]} 30. b4 {[%clk 0:01:37.8]} 30... Ne5 {[%clk
0:01:06.7]} 31. Ke2 {[%clk 0:01:35.8]} 31... Rc4 {[%clk 0:01:03.4]} 32. a3
{[%clk 0:01:33.4]} 32... Nc6 {[%clk 0:01:02.6]} 33. Kd3 {[%clk 0:01:22.3]} 33...
Ne8 {[%clk 0:00:48]} 34. Nb3 {[%clk 0:01:16.6]} 34... d4 {[%clk 0:00:34.2]} 35.
exd4 {[%clk 0:01:09.7]} 35... Rd8 {[%clk 0:00:31.8]} 36. d5 {[%clk 0:00:44.8]}
36... Bxd5 {[%clk 0:00:28.1]} 37. Ke3 {[%clk 0:00:45.3]} 37... Nf6 {[%clk
0:00:18.2]} 38. Nc5 {[%clk 0:00:33.9]} 38... Re8+ {[%clk 0:00:18.8]} 39. Kf2
{[%clk 0:00:33.1]} 39... Nd4 {[%clk 0:00:17.4]} 40. Rd2 {[%clk 0:00:28.3]} 40...
Nxf3 {[%clk 0:00:16.8]} 41. Rdd1 {[%clk 0:00:21.7]} 41... Ng5 {[%clk 0:00:14.3]}
42. Nxd5 {[%clk 0:00:20.6]} 42... Nxd5 {[%clk 0:00:08.2]} 43. Rxc4 {[%clk
0:00:20.8]} 43... Nxh3+ {[%clk 0:00:07.3]} 44. Kg3 {[%clk 0:00:08.7]} 44... Re3+
{[%clk 0:00:06.6]} 45. Kh2 {[%clk 0:00:09.6]} 45... bxc4 {[%clk 0:00:05.3]} 46.
Rxd5 {[%clk 0:00:10.1]} 46... c3 {[%clk 0:00:04.7]} 47. Rd8+ {[%clk 0:00:10.1]}
47... Kh7 {[%clk 0:00:04.6]} 48. Rc8 {[%clk 0:00:11]} 48... Nf4 {[%clk 0:00:04]}
49. Nxa6 {[%clk 0:00:11.5]} 49... Nd5 {[%clk 0:00:01.9]} 50. b5 {[%clk 0:00:11]}
50... Re2+ {[%clk 0:00:01.6]} 51. Kg3 {[%clk 0:00:11.4]} 51... c2 {[%clk
0:00:02.5]} 52. Nb4 {[%clk 0:00:10.3]} 52... Ne3 {[%clk 0:00:02.1]} 53. b6
{[%clk 0:00:09.3]} 53... Re1 {[%clk 0:00:01.4]} 54. Nxc2 {[%clk 0:00:07.5]}
54... Rc1 {[%clk 0:00:01.6]} 55. b7 {[%clk 0:00:07.7]} 55... Nxc2 {[%clk
0:00:01.2]} 56. b8=Q {[%clk 0:00:07.5]} 1-0

[Event "Early-Titled-Tuesday-Blitz-January-23-2024"]
[Site "Chess.com"]
[Date "2024.01.23"]
[Round "11"]
[White "mbojan"]
[Black "Vazabanga"]
[Result "0-1"]
[WhiteElo "2884"]
[BlackElo "2710"]
[TimeControl "180+1"]
[EndTime "10:08:38 PST"]
[Termination "Vazabanga won by checkmate"]

1. e4 {[%clk 0:02:59.9]} 1... c5 {[%clk 0:03:00.1]} 2. Nf3 {[%clk 0:02:57.6]}
2... d6 {[%clk 0:03:00.3]} 3. Bb5+ {[%clk 0:02:56.6]} 3... Bd7 {[%clk
0:02:59.7]} 4. a4 {[%clk 0:02:56.8]} 4... g6 {[%clk 0:02:55]} 5. O-O {[%clk
0:02:54.9]} 5... Bg7 {[%clk 0:02:55.4]} 6. Nc3 {[%clk 0:02:55.5]} 6... Nf6
{[%clk 0:02:55.6]} 7. d3 {[%clk 0:02:55.9]} 7... O-O {[%clk 0:02:55.5]} 8. h3
{[%clk 0:02:54.8]} 8... Nc6 {[%clk 0:02:54.3]} 9. Bg5 {[%clk 0:02:50.4]} 9... a6
{[%clk 0:02:40.2]} 10. Bxc6 {[%clk 0:02:49.8]} 10... Bxc6 {[%clk 0:02:40.7]} 11.
a5 {[%clk 0:02:46]} 11... Nd7 {[%clk 0:02:37.1]} 12. Qd2 {[%clk 0:02:43.1]}
12... Re8 {[%clk 0:02:37]} 13. Ra2 {[%clk 0:02:28]} 13... Qc7 {[%clk 0:02:30.3]}
14. Re1 {[%clk 0:02:27.2]} 14... e6 {[%clk 0:02:29.2]} 15. Bf4 {[%clk
0:02:26.6]} 15... Rad8 {[%clk 0:02:23.3]} 16. b3 {[%clk 0:02:21.2]} 16... Nf8
{[%clk 0:02:05.6]} 17. Bg5 {[%clk 0:02:19.6]} 17... f6 {[%clk 0:02:00.6]} 18.
Bh6 {[%clk 0:02:19.5]} 18... e5 {[%clk 0:01:59.8]} 19. Bxg7 {[%clk 0:02:12.9]}
19... Kxg7 {[%clk 0:02:00.7]} 20. Na4 {[%clk 0:02:12]} 20... Ne6 {[%clk
0:01:57.4]} 21. Nb6 {[%clk 0:02:08.6]} 21... Qe7 {[%clk 0:01:42.4]} 22. Kh2
{[%clk 0:02:05.9]} 22... f5 {[%clk 0:01:39.6]} 23. Ng1 {[%clk 0:01:51.6]} 23...
Rf8 {[%clk 0:01:36.6]} 24. f3 {[%clk 0:01:47.2]} 24... f4 {[%clk 0:01:19.5]} 25.
c3 {[%clk 0:01:47.2]} 25... g5 {[%clk 0:01:17.8]} 26. Ne2 {[%clk 0:01:40.5]}
26... h5 {[%clk 0:01:17.7]} 27. d4 {[%clk 0:01:41.1]} 27... Bb5 {[%clk
0:01:07.9]} 28. c4 {[%clk 0:01:35.4]} 28... Be8 {[%clk 0:01:07.1]} 29. Nd5
{[%clk 0:01:33.8]} 29... Qf7 {[%clk 0:01:04.5]} 30. dxe5 {[%clk 0:01:33.2]}
30... dxe5 {[%clk 0:01:04.7]} 31. Qc3 {[%clk 0:01:33.8]} 31... Nd4 {[%clk
0:01:03.3]} 32. b4 {[%clk 0:01:34.1]} 32... cxb4 {[%clk 0:00:59.7]} 33. Qxb4
{[%clk 0:01:35]} 33... Nc6 {[%clk 0:00:53.6]} 34. Qc3 {[%clk 0:01:32.7]} 34...
g4 {[%clk 0:00:53.5]} 35. Nexf4 {[%clk 0:01:32.8]} 35... Kh7 {[%clk 0:00:44.3]}
36. Nd3 {[%clk 0:01:31.1]} 36... gxf3 {[%clk 0:00:40]} 37. Rf2 {[%clk
0:01:28.6]} 37... Qg7 {[%clk 0:00:30.2]} 38. gxf3 {[%clk 0:01:12]} 38... Rg8
{[%clk 0:00:25.9]} 39. Kh1 {[%clk 0:01:02.1]} 39... Rd6 {[%clk 0:00:19.2]} 40.
Qc1 {[%clk 0:00:19.7]} 40... Qg3 {[%clk 0:00:14.2]} 41. Rg1 {[%clk 0:00:06.9]}
41... Qxh3+ {[%clk 0:00:14.1]} 42. Rh2 {[%clk 0:00:07.7]} 42... Qxf3+ {[%clk
0:00:14.6]} 43. Rgg2 {[%clk 0:00:08.4]} 43... Rxg2 {[%clk 0:00:12.4]} 44. Rxg2
{[%clk 0:00:09.3]} 44... Rg6 {[%clk 0:00:12.3]} 45. Ne3 {[%clk 0:00:09.7]} 45...
Bd7 {[%clk 0:00:07.9]} 46. Ne1 {[%clk 0:00:08.3]} 46... Qxe4 {[%clk 0:00:05.2]}
47. Kg1 {[%clk 0:00:08.1]} 47... Rxg2+ {[%clk 0:00:04.1]} 48. N3xg2 {[%clk
0:00:07.8]} 48... Nd4 {[%clk 0:00:04.7]} 49. Qg5 {[%clk 0:00:08]} 49... Qg6
{[%clk 0:00:02.9]} 50. Qe7+ {[%clk 0:00:08.1]} 50... Qg7 {[%clk 0:00:03.6]} 51.
Qxe5 {[%clk 0:00:08.4]} 51... Qxe5 {[%clk 0:00:02.5]} 52. Nd3 {[%clk 0:00:08.2]}
52... Qe2 {[%clk 0:00:02.3]} 53. Ndf4 {[%clk 0:00:08.3]} 53... Qd1+ {[%clk
0:00:03]} 54. Kf2 {[%clk 0:00:08.7]} 54... Nc2 {[%clk 0:00:02.8]} 55. Nd5 {[%clk
0:00:06.5]} 55... Qd4+ {[%clk 0:00:03]} 56. Kg3 {[%clk 0:00:06]} 56... Qxc4
{[%clk 0:00:03.6]} 57. Ndf4 {[%clk 0:00:05.8]} 57... Kg7 {[%clk 0:00:03.9]} 58.
Nxh5+ {[%clk 0:00:06.1]} 58... Kf7 {[%clk 0:00:04.5]} 59. Nhf4 {[%clk 0:00:07]}
59... Qc7 {[%clk 0:00:04.7]} 60. Kf3 {[%clk 0:00:07.1]} 60... Nd4+ {[%clk
0:00:05.1]} 61. Ke4 {[%clk 0:00:07.5]} 61... Nf5 {[%clk 0:00:05.7]} 62. Nd5
{[%clk 0:00:07]} 62... Qc4+ {[%clk 0:00:05.9]} 63. Ke5 {[%clk 0:00:07.2]} 63...
Qd4# {[%clk 0:00:06.5]} 0-1

[Event "Early-Titled-Tuesday-Blitz-January-23-2024"]
[Site "Chess.com"]
[Date "2024.01.23"]
[Round "11"]
[White "Rodalquilar"]
[Black "FM_VS99"]
[Result "1-0"]
[WhiteElo "2745"]
[BlackElo "2561"]
[TimeControl "180+1"]
[EndTime "10:08:40 PST"]
[Termination "Rodalquilar won by resignation"]

1. d4 {[%clk 0:03:00.9]} 1... Nf6 {[%clk 0:02:59]} 2. Nf3 {[%clk 0:03:01.2]}
2... g6 {[%clk 0:02:55.4]} 3. Bf4 {[%clk 0:03:00.7]} 3... Bg7 {[%clk 0:02:55]}
4. e3 {[%clk 0:03:01.3]} 4... O-O {[%clk 0:02:55.8]} 5. Be2 {[%clk 0:03:01.9]}
5... d6 {[%clk 0:02:56.4]} 6. O-O {[%clk 0:03:02.2]} 6... c5 {[%clk 0:02:44]} 7.
c3 {[%clk 0:03:02.2]} 7... Qb6 {[%clk 0:02:44]} 8. Nbd2 {[%clk 0:03:02.2]} 8...
Be6 {[%clk 0:02:14.1]} 9. e4 {[%clk 0:03:01.8]} 9... cxd4 {[%clk 0:01:59.2]} 10.
Nxd4 {[%clk 0:03:02.7]} 10... Qxb2 {[%clk 0:01:25]} 11. Nxe6 {[%clk 0:02:56]}
11... fxe6 {[%clk 0:01:24.5]} 12. Rb1 {[%clk 0:02:56.5]} 12... Qxc3 {[%clk
0:01:21.3]} 13. Rxb7 {[%clk 0:02:43.2]} 13... Nc6 {[%clk 0:00:50.2]} 14. Qb1
{[%clk 0:01:45.5]} 14... Nd4 {[%clk 0:00:37.7]} 15. Bd3 {[%clk 0:01:21.2]} 15...
Nh5 {[%clk 0:00:31.1]} 16. Be3 {[%clk 0:01:07]} 16... Nf4 {[%clk 0:00:30.9]} 17.
Ba6 {[%clk 0:00:41]} 17... Be5 {[%clk 0:00:21.9]} 18. Kh1 {[%clk 0:00:39.4]}
18... Qa5 {[%clk 0:00:18.5]} 19. Bc4 {[%clk 0:00:29.3]} 19... d5 {[%clk
0:00:16.9]} 20. Bb3 {[%clk 0:00:28.7]} 20... Rab8 {[%clk 0:00:15.2]} 21. Rxb8
{[%clk 0:00:25.4]} 21... Rxb8 {[%clk 0:00:14.7]} 22. exd5 {[%clk 0:00:26]} 22...
Nxb3 {[%clk 0:00:11.7]} 23. Nxb3 {[%clk 0:00:21.1]} 23... Qxd5 {[%clk
0:00:12.2]} 24. Bxf4 {[%clk 0:00:21.6]} 24... Bxf4 {[%clk 0:00:13.1]} 25. Rd1
{[%clk 0:00:19.7]} 25... Qh5 {[%clk 0:00:12.1]} 26. g3 {[%clk 0:00:16]} 26...
Bd6 {[%clk 0:00:10.5]} 27. Re1 {[%clk 0:00:13.7]} 27... a5 {[%clk 0:00:09.5]}
28. Qe4 {[%clk 0:00:13.2]} 28... Rf8 {[%clk 0:00:08.8]} 29. Qxe6+ {[%clk
0:00:13.2]} 29... Kh8 {[%clk 0:00:09.5]} 30. Qe2 {[%clk 0:00:12]} 30... Qd5+
{[%clk 0:00:09.4]} 31. Kg1 {[%clk 0:00:11.9]} 31... a4 {[%clk 0:00:09.8]} 32.
Nc1 {[%clk 0:00:12.4]} 32... Bc5 {[%clk 0:00:09.1]} 33. Nd3 {[%clk 0:00:13.1]}
33... Bd6 {[%clk 0:00:07.2]} 34. Qb2+ {[%clk 0:00:12.7]} 34... Kg8 {[%clk
0:00:06.9]} 35. Qc2 {[%clk 0:00:13.1]} 35... Qd4 {[%clk 0:00:05.8]} 36. Re3
{[%clk 0:00:11.3]} 36... h5 {[%clk 0:00:05.9]} 37. Qe2 {[%clk 0:00:07.7]} 37...
Rf7 {[%clk 0:00:05.6]} 38. Re4 {[%clk 0:00:08.1]} 38... Qa1+ {[%clk 0:00:05.4]}
39. Kg2 {[%clk 0:00:08.6]} 39... Qf6 {[%clk 0:00:05.9]} 40. Re6 {[%clk
0:00:08.1]} 40... Qf5 {[%clk 0:00:05.3]} 41. Re4 {[%clk 0:00:07.6]} 41... Qd5
{[%clk 0:00:05.3]} 42. f3 {[%clk 0:00:06.8]} 42... Rf8 {[%clk 0:00:05.6]} 43.
Rxa4 {[%clk 0:00:06.8]} 43... Rc8 {[%clk 0:00:05.4]} 44. Nf4 {[%clk 0:00:04.6]}
44... Bxf4 {[%clk 0:00:04.9]} 45. Rxf4 {[%clk 0:00:04.9]} 45... Qd6 {[%clk
0:00:03]} 46. Re4 {[%clk 0:00:04.6]} 46... Rc7 {[%clk 0:00:02.8]} 47. Re6 {[%clk
0:00:04.3]} 47... Qa3 {[%clk 0:00:01.9]} 48. Rxg6+ {[%clk 0:00:04.6]} 48... Kf8
{[%clk 0:00:01.8]} 49. Re6 {[%clk 0:00:03.6]} 49... Qa4 {[%clk 0:00:01.5]} 50.
Kh3 {[%clk 0:00:03.2]} 50... Rc2 {[%clk 0:00:02.1]} 51. Qe4 {[%clk 0:00:03.7]}
51... Qa6 {[%clk 0:00:02.5]} 52. Rxa6 {[%clk 0:00:03.7]} 1-0

[Event "Early-Titled-Tuesday-Blitz-January-23-2024"]
[Site "Chess.com"]
[Date "2024.01.23"]
[Round "11"]
[White "FREDERICKtheMATE"]
[Black "GMAkobianSTL"]
[Result "1/2-1/2"]
[WhiteElo "2579"]
[BlackElo "2755"]
[TimeControl "180+1"]
[EndTime "10:08:40 PST"]
[Termination "Game drawn by repetition"]

1. d4 {[%clk 0:03:00.9]} 1... Nf6 {[%clk 0:02:58.8]} 2. c4 {[%clk 0:03:01.2]}
2... b6 {[%clk 0:02:59]} 3. Nc3 {[%clk 0:02:59.5]} 3... Bb7 {[%clk 0:02:59.1]}
4. d5 {[%clk 0:02:59.4]} 4... e6 {[%clk 0:02:58.6]} 5. a3 {[%clk 0:02:59.7]}
5... Be7 {[%clk 0:02:57.8]} 6. e4 {[%clk 0:02:59.3]} 6... exd5 {[%clk
0:02:54.1]} 7. exd5 {[%clk 0:02:58]} 7... O-O {[%clk 0:02:53.8]} 8. Nf3 {[%clk
0:02:58.2]} 8... Re8 {[%clk 0:02:53.9]} 9. Be2 {[%clk 0:02:58]} 9... c6 {[%clk
0:02:52.1]} 10. O-O {[%clk 0:02:56.5]} 10... cxd5 {[%clk 0:02:51.9]} 11. cxd5
{[%clk 0:02:56.6]} 11... d6 {[%clk 0:02:48.6]} 12. Bb5 {[%clk 0:02:54.7]} 12...
Nbd7 {[%clk 0:02:45.2]} 13. a4 {[%clk 0:02:54.6]} 13... a6 {[%clk 0:02:45.1]}
14. Bc4 {[%clk 0:02:50]} 14... Rc8 {[%clk 0:02:44.3]} 15. Ba2 {[%clk 0:02:49.7]}
15... Bf8 {[%clk 0:02:38.1]} 16. Nd4 {[%clk 0:02:47.2]} 16... Nc5 {[%clk
0:02:28.1]} 17. Bg5 {[%clk 0:02:41.9]} 17... h6 {[%clk 0:02:27.4]} 18. Bh4
{[%clk 0:02:40.7]} 18... g6 {[%clk 0:02:27]} 19. Qf3 {[%clk 0:02:34.6]} 19...
Bg7 {[%clk 0:02:26.8]} 20. Nc6 {[%clk 0:02:30.5]} 20... Bxc6 {[%clk 0:02:24.2]}
21. dxc6 {[%clk 0:02:31.4]} 21... g5 {[%clk 0:02:19.3]} 22. Bg3 {[%clk
0:02:31.3]} 22... g4 {[%clk 0:01:57.8]} 23. Qf4 {[%clk 0:02:17.3]} 23... Rxc6
{[%clk 0:01:56]} 24. Bh4 {[%clk 0:02:17.4]} 24... Nd3 {[%clk 0:01:37.7]} 25. Qf5
{[%clk 0:02:14.1]} 25... Nb4 {[%clk 0:01:22.7]} 26. Bb1 {[%clk 0:02:05.5]} 26...
Rc5 {[%clk 0:01:15.8]} 27. Qf4 {[%clk 0:02:03.8]} 27... Nbd5 {[%clk 0:01:06]}
28. Nxd5 {[%clk 0:02:03.8]} 28... Rxd5 {[%clk 0:01:05.9]} 29. f3 {[%clk
0:01:55.9]} 29... g3 {[%clk 0:00:53.6]} 30. hxg3 {[%clk 0:01:53.4]} 30... Qe7
{[%clk 0:00:49.7]} 31. Ba2 {[%clk 0:01:50.3]} 31... Rc5 {[%clk 0:00:34]} 32.
Rad1 {[%clk 0:01:31.5]} 32... d5 {[%clk 0:00:25.8]} 33. Rd2 {[%clk 0:00:57.4]}
33... Qe3+ {[%clk 0:00:23.4]} 34. Qxe3 {[%clk 0:00:57.1]} 34... Rxe3 {[%clk
0:00:24]} 35. Rfd1 {[%clk 0:00:55.4]} 35... b5 {[%clk 0:00:17.7]} 36. axb5
{[%clk 0:00:54.7]} 36... Rxb5 {[%clk 0:00:17.6]} 37. Kf2 {[%clk 0:00:53.8]}
37... Re8 {[%clk 0:00:16.7]} 38. Bxf6 {[%clk 0:00:49.2]} 38... Bxf6 {[%clk
0:00:16.4]} 39. Bxd5 {[%clk 0:00:49.6]} 39... Rxb2 {[%clk 0:00:14.4]} 40. Rxb2
{[%clk 0:00:48.4]} 40... Bxb2 {[%clk 0:00:14.4]} 41. Bc4 {[%clk 0:00:48.6]}
41... Re7 {[%clk 0:00:11.7]} 42. Bxa6 {[%clk 0:00:47.4]} 42... Kg7 {[%clk
0:00:11.9]} 43. g4 {[%clk 0:00:45.9]} 43... Bf6 {[%clk 0:00:11.2]} 44. Bc4
{[%clk 0:00:43]} 44... Rc7 {[%clk 0:00:11]} 45. Bd5 {[%clk 0:00:42.8]} 45... Rd7
{[%clk 0:00:11.1]} 46. f4 {[%clk 0:00:40.6]} 46... Ra7 {[%clk 0:00:10.4]} 47.
Kf3 {[%clk 0:00:38.7]} 47... Rd7 {[%clk 0:00:10.3]} 48. Ke4 {[%clk 0:00:38.3]}
48... Re7+ {[%clk 0:00:10.5]} 49. Kf5 {[%clk 0:00:38.5]} 49... Rd7 {[%clk
0:00:10.9]} 50. Rd3 {[%clk 0:00:34.2]} 50... Rd8 {[%clk 0:00:09.6]} 51. Rd1
{[%clk 0:00:32.8]} 51... Rd7 {[%clk 0:00:09.9]} 52. Ke4 {[%clk 0:00:31.3]} 52...
Re7+ {[%clk 0:00:10]} 53. Kd3 {[%clk 0:00:30.5]} 53... Rd7 {[%clk 0:00:10.1]}
54. Kc4 {[%clk 0:00:30]} 54... Rc7+ {[%clk 0:00:10.3]} 55. Kb5 {[%clk
0:00:29.9]} 55... Rd7 {[%clk 0:00:10.1]} 56. Kc6 {[%clk 0:00:29.5]} 56... Rd8
{[%clk 0:00:08.2]} 57. Rb1 {[%clk 0:00:27.7]} 57... Rc8+ {[%clk 0:00:08.1]} 58.
Kb6 {[%clk 0:00:21.6]} 58... Rb8+ {[%clk 0:00:07.5]} 59. Bb7 {[%clk 0:00:21]}
59... Rd8 {[%clk 0:00:07.1]} 60. Kc7 {[%clk 0:00:14.7]} 60... Rd4 {[%clk
0:00:06.3]} 61. Rf1 {[%clk 0:00:14.6]} 61... Rxf4 {[%clk 0:00:06.2]} 62. Rxf4
{[%clk 0:00:13.8]} 62... Be5+ {[%clk 0:00:06.6]} 63. Kd7 {[%clk 0:00:14.4]}
63... Bxf4 {[%clk 0:00:06.9]} 64. Bf3 {[%clk 0:00:14.6]} 64... Be5 {[%clk
0:00:06.7]} 65. Ke7 {[%clk 0:00:14.2]} 65... f6 {[%clk 0:00:07.1]} 66. Ke6
{[%clk 0:00:14.1]} 66... Bf4 {[%clk 0:00:07.7]} 67. Kf5 {[%clk 0:00:13.4]} 67...
Bg5 {[%clk 0:00:08.3]} 68. Bd5 {[%clk 0:00:13.3]} 68... Bh4 {[%clk 0:00:08.3]}
69. Bc4 {[%clk 0:00:13.6]} 69... Bg5 {[%clk 0:00:08.7]} 70. Bd5 {[%clk
0:00:13.6]} 70... Bh4 {[%clk 0:00:09.1]} 71. Bc4 {[%clk 0:00:14.3]} 71... Bg5
{[%clk 0:00:09.5]} 72. Bd5 {[%clk 0:00:15.2]} 1/2-1/2

[Event "Early-Titled-Tuesday-Blitz-January-23-2024"]
[Site "Chess.com"]
[Date "2024.01.23"]
[Round "11"]
[White "VinzentSpitzl"]
[Black "BashiqChess"]
[Result "0-1"]
[WhiteElo "2517"]
[BlackElo "2468"]
[TimeControl "180+1"]
[EndTime "10:08:41 PST"]
[Termination "BashiqChess won by resignation"]

1. e4 {[%clk 0:02:29.5]} 1... c5 {[%clk 0:02:58.1]} 2. Nf3 {[%clk 0:02:29.5]}
2... g6 {[%clk 0:02:58.5]} 3. d4 {[%clk 0:02:29.7]} 3... cxd4 {[%clk 0:02:58.7]}
4. Qxd4 {[%clk 0:02:30.3]} 4... Nf6 {[%clk 0:02:59.3]} 5. Nc3 {[%clk 0:02:30.9]}
5... Nc6 {[%clk 0:02:59.3]} 6. Qa4 {[%clk 0:02:31.4]} 6... d6 {[%clk 0:03:00]}
7. e5 {[%clk 0:02:31.7]} 7... dxe5 {[%clk 0:03:00.6]} 8. Nxe5 {[%clk 0:02:32.6]}
8... Bd7 {[%clk 0:03:01.2]} 9. Nxd7 {[%clk 0:02:32.2]} 9... Nxd7 {[%clk
0:03:02.1]} 10. Bb5 {[%clk 0:02:25.4]} 10... Bg7 {[%clk 0:03:02.2]} 11. O-O
{[%clk 0:02:20.7]} 11... O-O {[%clk 0:03:01.7]} 12. Bxc6 {[%clk 0:02:16.2]}
12... bxc6 {[%clk 0:03:01.6]} 13. Qxc6 {[%clk 0:02:16.8]} 13... Rc8 {[%clk
0:03:01.1]} 14. Qf3 {[%clk 0:02:17.4]} 14... Bxc3 {[%clk 0:03:00.6]} 15. bxc3
{[%clk 0:02:17.2]} 15... Qa5 {[%clk 0:02:52]} 16. Bh6 {[%clk 0:02:13.5]} 16...
Rfd8 {[%clk 0:02:37.1]} 17. Qe4 {[%clk 0:02:03.9]} 17... e6 {[%clk 0:01:24.9]}
18. Rad1 {[%clk 0:01:56.1]} 18... Qxc3 {[%clk 0:00:45.5]} 19. Bg5 {[%clk
0:01:33.1]} 19... Nf6 {[%clk 0:00:29.4]} 20. Rxd8+ {[%clk 0:01:26.3]} 20... Rxd8
{[%clk 0:00:26.9]} 21. Qh4 {[%clk 0:01:26.7]} 21... Kg7 {[%clk 0:00:24.1]} 22.
Qh6+ {[%clk 0:01:14.7]} 22... Kg8 {[%clk 0:00:23.2]} 23. h3 {[%clk 0:01:14.9]}
23... Rc8 {[%clk 0:00:17.8]} 24. Rb1 {[%clk 0:00:59.6]} 24... Ne4 {[%clk
0:00:15.4]} 25. Be3 {[%clk 0:00:54.8]} 25... Qf6 {[%clk 0:00:07.9]} 26. c4
{[%clk 0:00:51]} 26... a6 {[%clk 0:00:05.4]} 27. Rd1 {[%clk 0:00:37.2]} 27...
Nc3 {[%clk 0:00:03.8]} 28. Bd4 {[%clk 0:00:32.7]} 28... Ne2+ {[%clk 0:00:03.4]}
29. Kf1 {[%clk 0:00:32]} 29... Nxd4 {[%clk 0:00:04.3]} 30. Qe3 {[%clk
0:00:32.2]} 30... Nf5 {[%clk 0:00:04.3]} 31. Qf3 {[%clk 0:00:29.1]} 31... Qe7
{[%clk 0:00:04.1]} 32. g4 {[%clk 0:00:27.2]} 32... Nh4 {[%clk 0:00:03.9]} 33.
Qe4 {[%clk 0:00:25.8]} 33... Qc7 {[%clk 0:00:03.2]} 34. Rc1 {[%clk 0:00:23.6]}
34... Qc6 {[%clk 0:00:03.2]} 35. Qxc6 {[%clk 0:00:19.4]} 35... Rxc6 {[%clk
0:00:04.1]} 36. Ke2 {[%clk 0:00:20.2]} 36... g5 {[%clk 0:00:03.9]} 37. Kd3
{[%clk 0:00:16.6]} 37... Ng6 {[%clk 0:00:04.5]} 38. Kd4 {[%clk 0:00:15.4]} 38...
Kf8 {[%clk 0:00:04.7]} 39. Rb1 {[%clk 0:00:15.8]} 39... Ke7 {[%clk 0:00:05.1]}
40. Rb7+ {[%clk 0:00:16.3]} 40... Ke8 {[%clk 0:00:04.3]} 41. Rb8+ {[%clk
0:00:16.6]} 41... Kd7 {[%clk 0:00:04.1]} 42. Rb7+ {[%clk 0:00:17.3]} 42... Rc7
{[%clk 0:00:04.6]} 43. Rb6 {[%clk 0:00:17.5]} 43... Ne7 {[%clk 0:00:04.4]} 44.
Rxa6 {[%clk 0:00:17]} 44... Nc6+ {[%clk 0:00:05.1]} 45. Kc3 {[%clk 0:00:15.6]}
45... Ne5 {[%clk 0:00:05.3]} 46. Ra4 {[%clk 0:00:16]} 46... Nf3 {[%clk
0:00:05.1]} 47. Rb4 {[%clk 0:00:14.7]} 47... Ng1 {[%clk 0:00:05.3]} 48. a4
{[%clk 0:00:14.6]} 48... Nxh3 {[%clk 0:00:05.8]} 49. f3 {[%clk 0:00:15.1]} 49...
Ng1 {[%clk 0:00:05.8]} 50. a5 {[%clk 0:00:15.4]} 50... Nxf3 {[%clk 0:00:06.4]}
51. a6 {[%clk 0:00:15.9]} 51... Ne5 {[%clk 0:00:06.1]} 52. Rb7 {[%clk
0:00:11.4]} 52... Rxb7 {[%clk 0:00:05.5]} 53. axb7 {[%clk 0:00:11.2]} 53... Kc7
{[%clk 0:00:06.3]} 54. Kd4 {[%clk 0:00:11.6]} 54... Nxc4 {[%clk 0:00:06.4]} 55.
Kxc4 {[%clk 0:00:11.7]} 55... Kxb7 {[%clk 0:00:07.1]} 0-1